[Event "*** SCC Grand Prix: Titled Tuesday Blitz"]
[Site "Chess.com"]
[Date "2020.06.23"]
[Round "10"]
[White "ChessQueen"]
[Black "keshka01"]
[Result "1/2-1/2"]
[WhiteElo "2712"]
[BlackElo "2594"]
[TimeControl "180+1"]
[EndTime "11:57:21 PDT"]
[Termination "Game drawn by repetition"]

1. e4 {[%clk 0:03:00.9]} 1... Nf6 {[%clk 0:02:59.6]} 2. e5 {[%clk 0:03:00.7]}
2... Nd5 {[%clk 0:02:59.9]} 3. d4 {[%clk 0:03:01.3]} 3... d6 {[%clk 0:03:00.1]}
4. Nf3 {[%clk 0:03:01.9]} 4... dxe5 {[%clk 0:03:00]} 5. Nxe5 {[%clk 0:03:01.4]}
5... c6 {[%clk 0:03:00.6]} 6. Be2 {[%clk 0:02:50.8]} 6... Bf5 {[%clk 0:03:00]}
7. O-O {[%clk 0:02:46.5]} 7... Nd7 {[%clk 0:02:58.8]} 8. Nf3 {[%clk 0:02:43.6]}
8... e6 {[%clk 0:02:58.7]} 9. c4 {[%clk 0:02:43.2]} 9... N5f6 {[%clk 0:02:58.8]}
10. Nc3 {[%clk 0:02:40.9]} 10... Bd6 {[%clk 0:02:58.7]} 11. h3 {[%clk
0:02:40.4]} 11... O-O {[%clk 0:02:56.6]} 12. Bg5 {[%clk 0:02:35.1]} 12... h6
{[%clk 0:02:55.2]} 13. Bh4 {[%clk 0:02:34.2]} 13... Re8 {[%clk 0:02:19.6]} 14.
c5 {[%clk 0:02:08.6]} 14... Bc7 {[%clk 0:02:11.5]} 15. Qb3 {[%clk 0:02:00.6]}
15... Qb8 {[%clk 0:01:28.9]} 16. g4 {[%clk 0:01:38.3]} 16... Bg6 {[%clk
0:01:14.3]} 17. Kg2 {[%clk 0:01:38.2]} 17... Nd5 {[%clk 0:01:12.2]} 18. Nxd5
{[%clk 0:01:34.3]} 18... exd5 {[%clk 0:01:13.1]} 19. Bd3 {[%clk 0:01:33.2]}
19... Nf8 {[%clk 0:01:12.7]} 20. Bg3 {[%clk 0:01:29.2]} 20... Bxg3 {[%clk
0:01:03.6]} 21. fxg3 {[%clk 0:01:29.2]} 21... Re3 {[%clk 0:01:03.8]} 22. Rad1
{[%clk 0:01:27.7]} 22... Be4 {[%clk 0:00:46.3]} 23. Qc2 {[%clk 0:01:22.3]} 23...
Rxf3 {[%clk 0:00:45.2]} 24. Rxf3 {[%clk 0:01:22]} 24... Bxf3+ {[%clk 0:00:46.1]}
25. Kxf3 {[%clk 0:01:22]} 25... Ne6 {[%clk 0:00:45.2]} 26. Bf5 {[%clk
0:01:13.8]} 26... Qd8 {[%clk 0:00:42.6]} 27. Bxe6 {[%clk 0:01:01.9]} 27... fxe6
{[%clk 0:00:43.5]} 28. Qe2 {[%clk 0:00:51]} 28... Qf6+ {[%clk 0:00:35.8]} 29.
Kg2 {[%clk 0:00:51.2]} 29... Rf8 {[%clk 0:00:36.6]} 30. b4 {[%clk 0:00:50.5]}
30... a6 {[%clk 0:00:33.8]} 31. a4 {[%clk 0:00:50]} 31... Qg6 {[%clk 0:00:18.7]}
32. Re1 {[%clk 0:00:46.7]} 32... Kh8 {[%clk 0:00:15.3]} 33. Qxe6 {[%clk
0:00:36.7]} 33... Qc2+ {[%clk 0:00:15.1]} 34. Re2 {[%clk 0:00:37.3]} 34... Qxa4
{[%clk 0:00:14.9]} 35. Qe7 {[%clk 0:00:32.9]} 35... Rf6 {[%clk 0:00:11.8]} 36.
g5 {[%clk 0:00:26]} 36... hxg5 {[%clk 0:00:09.3]} 37. Qe8+ {[%clk 0:00:26.4]}
37... Kh7 {[%clk 0:00:09.4]} 38. Qh5+ {[%clk 0:00:26.8]} 38... Rh6 {[%clk
0:00:09.6]} 39. Qxg5 {[%clk 0:00:27.3]} 39... Qd1 {[%clk 0:00:09]} 40. Qf5+
{[%clk 0:00:25]} 40... Rg6 {[%clk 0:00:08.5]} 41. Qh5+ {[%clk 0:00:19.2]} 41...
Rh6 {[%clk 0:00:08.4]} 42. Qf5+ {[%clk 0:00:19.4]} 42... Rg6 {[%clk 0:00:09]}
43. Qh5+ {[%clk 0:00:14.7]} 43... Rh6 {[%clk 0:00:09.3]} 44. Qf5+ {[%clk
0:00:14.9]} 1/2-1/2

[Event "*** SCC Grand Prix: Titled Tuesday Blitz"]
[Site "Chess.com"]
[Date "2020.06.23"]
[Round "10"]
[White "sergeikim"]
[Black "MF1966Idrisov"]
[Result "1/2-1/2"]
[WhiteElo "2495"]
[BlackElo "2357"]
[TimeControl "180+1"]
[EndTime "11:57:23 PDT"]
[Termination "Game drawn by repetition"]

1. d4 {[%clk 0:03:00.9]} 1... d6 {[%clk 0:02:59.4]} 2. c4 {[%clk 0:03:00.9]}
2... f5 {[%clk 0:02:59.3]} 3. g3 {[%clk 0:02:59.9]} 3... e6 {[%clk 0:02:59.4]}
4. Bg2 {[%clk 0:02:59.7]} 4... Nf6 {[%clk 0:02:59.9]} 5. Nf3 {[%clk 0:02:59.5]}
5... Be7 {[%clk 0:02:59.9]} 6. O-O {[%clk 0:02:59.2]} 6... O-O {[%clk
0:02:59.9]} 7. Nc3 {[%clk 0:02:59.1]} 7... Ne4 {[%clk 0:02:59.7]} 8. Qc2 {[%clk
0:02:48.4]} 8... Nxc3 {[%clk 0:02:59.3]} 9. Qxc3 {[%clk 0:02:47.5]} 9... Bf6
{[%clk 0:02:59.5]} 10. Qc2 {[%clk 0:02:46.9]} 10... e5 {[%clk 0:02:54.4]} 11.
dxe5 {[%clk 0:02:35.9]} 11... dxe5 {[%clk 0:02:53.8]} 12. Rd1 {[%clk 0:02:30.4]}
12... Qe7 {[%clk 0:02:51.5]} 13. b3 {[%clk 0:02:06.7]} 13... Nc6 {[%clk
0:02:50.3]} 14. Bb2 {[%clk 0:02:06.2]} 14... Be6 {[%clk 0:02:44.9]} 15. a3
{[%clk 0:02:00.6]} 15... Rad8 {[%clk 0:02:42.1]} 16. b4 {[%clk 0:01:56]} 16...
e4 {[%clk 0:02:42]} 17. Ne1 {[%clk 0:01:51.1]} 17... Nd4 {[%clk 0:02:34.5]} 18.
Bxd4 {[%clk 0:01:43.4]} 18... Bxd4 {[%clk 0:02:32.4]} 19. Rab1 {[%clk
0:01:40.9]} 19... b6 {[%clk 0:02:28.1]} 20. e3 {[%clk 0:01:39.3]} 20... Be5
{[%clk 0:02:26]} 21. Bf1 {[%clk 0:01:30.3]} 21... c5 {[%clk 0:02:07]} 22. b5
{[%clk 0:01:24.5]} 22... h5 {[%clk 0:02:00.1]} 23. Ng2 {[%clk 0:01:22.8]} 23...
g5 {[%clk 0:01:59.8]} 24. h4 {[%clk 0:01:21.5]} 24... Kh7 {[%clk 0:01:48.6]} 25.
hxg5 {[%clk 0:01:14.2]} 25... Qxg5 {[%clk 0:01:47.6]} 26. Rxd8 {[%clk
0:01:13.3]} 26... Rxd8 {[%clk 0:01:45.5]} 27. Rd1 {[%clk 0:01:13.3]} 27... Qe7
{[%clk 0:01:38.4]} 28. Be2 {[%clk 0:01:06.6]} 28... Kh6 {[%clk 0:01:34.9]} 29.
a4 {[%clk 0:00:58.9]} 29... Rd6 {[%clk 0:01:32.6]} 30. Rxd6 {[%clk 0:00:49]}
30... Qxd6 {[%clk 0:01:32.3]} 31. Qa2 {[%clk 0:00:46.1]} 31... Bc3 {[%clk
0:01:26.8]} 32. Qc2 {[%clk 0:00:44.4]} 32... Qd2 {[%clk 0:01:22.5]} 33. Qb3
{[%clk 0:00:40]} 33... Bf7 {[%clk 0:01:13.1]} 34. Nf4 {[%clk 0:00:36.5]} 34...
Bb4 {[%clk 0:01:07.8]} 35. Qb1 {[%clk 0:00:29.9]} 35... Qe1+ {[%clk 0:01:02.1]}
36. Qxe1 {[%clk 0:00:29.5]} 36... Bxe1 {[%clk 0:01:02]} 37. Kf1 {[%clk
0:00:29.2]} 37... Bc3 {[%clk 0:01:01.1]} 38. Kg2 {[%clk 0:00:25.6]} 38... Kg5
{[%clk 0:01:01.1]} 39. Nh3+ {[%clk 0:00:24]} 39... Kh6 {[%clk 0:00:59.8]} 40.
Nf4 {[%clk 0:00:24.9]} 40... Be5 {[%clk 0:00:59.5]} 41. Kh3 {[%clk 0:00:21.8]}
41... Kg5 {[%clk 0:00:58.8]} 42. Kg2 {[%clk 0:00:21.2]} 42... Bf6 {[%clk
0:00:52.3]} 43. Nh3+ {[%clk 0:00:20.3]} 43... Kh6 {[%clk 0:00:52.3]} 44. Nf4
{[%clk 0:00:21.2]} 44... Bg5 {[%clk 0:00:50.8]} 45. Nh3 {[%clk 0:00:20]} 45...
h4 {[%clk 0:00:47.2]} 46. Nxg5 {[%clk 0:00:12.7]} 46... Kxg5 {[%clk 0:00:47]}
47. Kh3 {[%clk 0:00:13.1]} 47... hxg3 {[%clk 0:00:46.6]} 48. Kxg3 {[%clk
0:00:13.3]} 48... Be8 {[%clk 0:00:40.8]} 49. Kh3 {[%clk 0:00:13]} 49... Bf7
{[%clk 0:00:39]} 50. Kg3 {[%clk 0:00:12.9]} 50... Bg8 {[%clk 0:00:38.3]} 51. Bf1
{[%clk 0:00:12.1]} 51... Bf7 {[%clk 0:00:37.1]} 52. Be2 {[%clk 0:00:12.6]}
1/2-1/2

[Event "*** SCC Grand Prix: Titled Tuesday Blitz"]
[Site "Chess.com"]
[Date "2020.06.23"]
[Round "10"]
[White "stolencandy13"]
[Black "monalize"]
[Result "1-0"]
[WhiteElo "2430"]
[BlackElo "2273"]
[TimeControl "180+1"]
[EndTime "11:57:24 PDT"]
[Termination "stolencandy13 won on time"]

1. e4 {[%clk 0:03:00.9]} 1... c5 {[%clk 0:02:59.6]} 2. Nf3 {[%clk 0:03:00.1]}
2... d6 {[%clk 0:02:59.8]} 3. d4 {[%clk 0:03:00.4]} 3... cxd4 {[%clk 0:03:00.4]}
4. Nxd4 {[%clk 0:03:01.3]} 4... Nf6 {[%clk 0:03:00]} 5. Nc3 {[%clk 0:02:59.6]}
5... a6 {[%clk 0:03:00]} 6. h3 {[%clk 0:02:59.1]} 6... e5 {[%clk 0:02:53.8]} 7.
Nde2 {[%clk 0:02:55.2]} 7... h6 {[%clk 0:02:50.6]} 8. g4 {[%clk 0:02:52.8]} 8...
b5 {[%clk 0:02:50]} 9. Bg2 {[%clk 0:02:51.5]} 9... Bb7 {[%clk 0:02:49.9]} 10.
O-O {[%clk 0:02:46.6]} 10... Nbd7 {[%clk 0:02:49.6]} 11. Ng3 {[%clk 0:02:44.4]}
11... g6 {[%clk 0:02:44.8]} 12. Be3 {[%clk 0:02:41.9]} 12... Nb6 {[%clk
0:02:28.1]} 13. f4 {[%clk 0:02:39.2]} 13... Nc4 {[%clk 0:02:27.1]} 14. Qf3
{[%clk 0:02:32.4]} 14... Nxe3 {[%clk 0:02:20.6]} 15. Qxe3 {[%clk 0:02:32.1]}
15... Bg7 {[%clk 0:01:29.6]} 16. fxe5 {[%clk 0:02:27.8]} 16... dxe5 {[%clk
0:01:29.1]} 17. Rad1 {[%clk 0:02:28.7]} 17... Qc7 {[%clk 0:01:27.2]} 18. Nd5
{[%clk 0:02:26.6]} 18... Nxd5 {[%clk 0:01:26.4]} 19. exd5 {[%clk 0:02:24]} 19...
O-O {[%clk 0:01:21.6]} 20. d6 {[%clk 0:02:22.3]} 20... Qd7 {[%clk 0:01:21.7]}
21. Bxb7 {[%clk 0:02:19.8]} 21... Qxb7 {[%clk 0:01:21.3]} 22. Qe4 {[%clk
0:02:20.7]} 22... Qb6+ {[%clk 0:01:13.3]} 23. Kg2 {[%clk 0:02:20.7]} 23... Rad8
{[%clk 0:01:13.2]} 24. Qd5 {[%clk 0:02:02.8]} 24... Kh7 {[%clk 0:01:06.6]} 25.
c3 {[%clk 0:01:51.6]} 25... Rd7 {[%clk 0:01:02.8]} 26. Ne4 {[%clk 0:01:49.2]}
26... f5 {[%clk 0:00:38]} 27. Nc5 {[%clk 0:01:42.8]} 27... Ra7 {[%clk
0:00:25.6]} 28. Ne6 {[%clk 0:01:39.4]} 28... Rff7 {[%clk 0:00:15.5]} 29. Rf3
{[%clk 0:01:17.8]} 29... e4 {[%clk 0:00:15]} 30. Rff1 {[%clk 0:01:16.5]} 30...
fxg4 {[%clk 0:00:12.9]} 31. Rxf7 {[%clk 0:01:15.3]} 31... Rxf7 {[%clk
0:00:11.9]} 32. Ng5+ {[%clk 0:01:07.8]} 32... hxg5 {[%clk 0:00:11.2]} 33. Qxf7
{[%clk 0:01:08.7]} 33... Qe3 {[%clk 0:00:10.6]} 34. Rh1 {[%clk 0:00:53.4]} 34...
Qd2+ {[%clk 0:00:06.4]} 35. Qf2 {[%clk 0:00:53.1]} 35... Qxd6 {[%clk 0:00:05.7]}
36. hxg4+ {[%clk 0:00:53.1]} 36... Kg8 {[%clk 0:00:05.9]} 37. Rf1 {[%clk
0:00:50.3]} 37... Qd5 {[%clk 0:00:06.1]} 38. Qe3 {[%clk 0:00:47.4]} 38... Be5
{[%clk 0:00:05.4]} 39. Qxg5 {[%clk 0:00:41.9]} 39... e3+ {[%clk 0:00:05.4]} 40.
Kh3 {[%clk 0:00:30.2]} 40... e2 {[%clk 0:00:03.6]} 41. Qxg6+ {[%clk 0:00:25.3]}
41... Bg7 {[%clk 0:00:03.7]} 42. Qe8+ {[%clk 0:00:24.5]} 42... Kh7 {[%clk
0:00:04]} 43. Qxe2 {[%clk 0:00:21]} 43... Qd3+ {[%clk 0:00:02.5]} 44. Qxd3+
{[%clk 0:00:20.6]} 1-0

[Event "*** SCC Grand Prix: Titled Tuesday Blitz"]
[Site "Chess.com"]
[Date "2020.06.23"]
[Round "10"]
[White "VincentKeymer"]
[Black "BogdanBelyakov89"]
[Result "1-0"]
[WhiteElo "2822"]
[BlackElo "2582"]
[TimeControl "180+1"]
[EndTime "11:57:26 PDT"]
[Termination "VincentKeymer won on time"]

1. Nf3 {[%clk 0:03:00.9]} 1... Nf6 {[%clk 0:02:59.2]} 2. c4 {[%clk 0:03:01.4]}
2... g6 {[%clk 0:02:59.3]} 3. Nc3 {[%clk 0:03:01.9]} 3... Bg7 {[%clk 0:02:59.6]}
4. g3 {[%clk 0:03:02.7]} 4... O-O {[%clk 0:02:59.4]} 5. Bg2 {[%clk 0:03:03.3]}
5... d6 {[%clk 0:02:58]} 6. O-O {[%clk 0:03:03.7]} 6... Nc6 {[%clk 0:02:57.7]}
7. d4 {[%clk 0:03:03.8]} 7... a6 {[%clk 0:02:57.5]} 8. b3 {[%clk 0:03:02.1]}
8... Rb8 {[%clk 0:02:57.3]} 9. d5 {[%clk 0:03:02.3]} 9... Na5 {[%clk 0:02:57.2]}
10. Bg5 {[%clk 0:03:01.3]} 10... c5 {[%clk 0:02:57.4]} 11. dxc6 {[%clk
0:03:01.1]} 11... Nxc6 {[%clk 0:02:58]} 12. Rc1 {[%clk 0:03:01.5]} 12... h6
{[%clk 0:02:57.9]} 13. Bd2 {[%clk 0:03:00.4]} 13... d5 {[%clk 0:02:57.7]} 14.
Bf4 {[%clk 0:02:58.6]} 14... Ra8 {[%clk 0:02:02.2]} 15. cxd5 {[%clk 0:02:56.7]}
15... Na7 {[%clk 0:01:55.4]} 16. e4 {[%clk 0:02:55.2]} 16... Nb5 {[%clk
0:01:53.6]} 17. e5 {[%clk 0:02:53.4]} 17... Nxc3 {[%clk 0:01:50.8]} 18. Rxc3
{[%clk 0:02:49.5]} 18... Nxd5 {[%clk 0:01:50.5]} 19. Rd3 {[%clk 0:02:50]} 19...
e6 {[%clk 0:01:48.2]} 20. Qd2 {[%clk 0:02:46.4]} 20... g5 {[%clk 0:01:46]} 21.
Be3 {[%clk 0:02:40.3]} 21... b5 {[%clk 0:01:39.1]} 22. h4 {[%clk 0:02:36.5]}
22... g4 {[%clk 0:01:32.8]} 23. Nd4 {[%clk 0:02:16]} 23... Nxe3 {[%clk
0:00:42.3]} 24. Qxe3 {[%clk 0:02:09.4]} 24... Rb8 {[%clk 0:00:42.5]} 25. Nc6
{[%clk 0:01:45.2]} 25... Qb6 {[%clk 0:00:42.3]} 26. Qf4 {[%clk 0:01:36.4]} 26...
Rb7 {[%clk 0:00:31.6]} 27. Qxg4 {[%clk 0:01:28.8]} 27... Rc7 {[%clk 0:00:30.6]}
28. Nd4 {[%clk 0:01:19.7]} 28... Kh8 {[%clk 0:00:27.1]} 29. Qf4 {[%clk
0:01:16.2]} 29... Qc5 {[%clk 0:00:21.9]} 30. Nf3 {[%clk 0:01:08.2]} 30... Bb7
{[%clk 0:00:21.2]} 31. Re1 {[%clk 0:01:07.7]} 31... Rfc8 {[%clk 0:00:16]} 32. g4
{[%clk 0:01:05.6]} 32... Bxf3 {[%clk 0:00:14.1]} 33. Bxf3 {[%clk 0:00:58.2]}
33... Qe7 {[%clk 0:00:15]} 34. g5 {[%clk 0:00:56.2]} 34... Rg8 {[%clk
0:00:14.3]} 35. Kh2 {[%clk 0:00:49.2]} 35... Bf8 {[%clk 0:00:14.3]} 36. gxh6
{[%clk 0:00:38.9]} 36... Rc2 {[%clk 0:00:13.6]} 37. Be4 {[%clk 0:00:36.6]} 37...
Rxa2 {[%clk 0:00:05.2]} 38. Rg1 {[%clk 0:00:24.5]} 38... Rxg1 {[%clk 0:00:04.5]}
39. Kxg1 {[%clk 0:00:25.4]} 39... Rc2 {[%clk 0:00:01.9]} 40. Rg3 {[%clk
0:00:24.2]} 1-0

[Event "*** SCC Grand Prix: Titled Tuesday Blitz"]
[Site "Chess.com"]
[Date "2020.06.23"]
[Round "10"]
[White "olksuna"]
[Black "goofypenguin96"]
[Result "0-1"]
[WhiteElo "2600"]
[BlackElo "2393"]
[TimeControl "180+1"]
[EndTime "11:57:27 PDT"]
[Termination "goofypenguin96 won by checkmate"]

1. e4 {[%clk 0:03:00.9]} 1... e6 {[%clk 0:02:57.4]} 2. d4 {[%clk 0:02:58.8]}
2... d5 {[%clk 0:02:57.7]} 3. Bd3 {[%clk 0:02:59.5]} 3... dxe4 {[%clk
0:02:55.5]} 4. Bxe4 {[%clk 0:03:00.4]} 4... Nf6 {[%clk 0:02:56]} 5. Bf3 {[%clk
0:03:00.9]} 5... c5 {[%clk 0:02:56.6]} 6. Ne2 {[%clk 0:03:01.5]} 6... Nc6 {[%clk
0:02:55.7]} 7. Be3 {[%clk 0:03:00.3]} 7... cxd4 {[%clk 0:02:50.4]} 8. Nxd4
{[%clk 0:02:59.2]} 8... Nxd4 {[%clk 0:02:49.4]} 9. Qxd4 {[%clk 0:02:54.8]} 9...
Qxd4 {[%clk 0:02:48.6]} 10. Bxd4 {[%clk 0:02:55.7]} 10... Be7 {[%clk 0:02:48]}
11. c4 {[%clk 0:02:55.3]} 11... O-O {[%clk 0:02:47.5]} 12. Nc3 {[%clk
0:02:55.9]} 12... a6 {[%clk 0:02:39.7]} 13. O-O-O {[%clk 0:02:52.9]} 13... Rd8
{[%clk 0:02:24.5]} 14. Bb6 {[%clk 0:02:48.1]} 14... Rxd1+ {[%clk 0:02:13.6]} 15.
Rxd1 {[%clk 0:02:49]} 15... Bd7 {[%clk 0:02:11.4]} 16. c5 {[%clk 0:02:42.5]}
16... Bc6 {[%clk 0:02:08.4]} 17. b4 {[%clk 0:02:36.1]} 17... Rc8 {[%clk
0:01:57.2]} 18. Kb2 {[%clk 0:02:32.3]} 18... h6 {[%clk 0:01:50.4]} 19. a4 {[%clk
0:02:31.8]} 19... Kf8 {[%clk 0:01:24.1]} 20. Kb3 {[%clk 0:02:23.1]} 20... g5
{[%clk 0:01:14.4]} 21. h3 {[%clk 0:02:11]} 21... h5 {[%clk 0:01:04.8]} 22. Kc4
{[%clk 0:01:56.2]} 22... Nd5 {[%clk 0:00:44]} 23. Nxd5 {[%clk 0:01:52.5]} 23...
exd5+ {[%clk 0:00:42.8]} 24. Bxd5 {[%clk 0:01:51.3]} 24... Bxa4 {[%clk
0:00:36.6]} 25. Re1 {[%clk 0:01:36]} 25... Bb5+ {[%clk 0:00:32.7]} 26. Kb3
{[%clk 0:01:36.1]} 26... Bc6 {[%clk 0:00:26.8]} 27. Kc4 {[%clk 0:01:32.5]} 27...
Bb5+ {[%clk 0:00:26.5]} 28. Kb3 {[%clk 0:01:33.2]} 28... Bc6 {[%clk 0:00:26.5]}
29. Re5 {[%clk 0:01:25.5]} 29... f6 {[%clk 0:00:20.5]} 30. Bxc6 {[%clk
0:01:17.1]} 30... Rxc6 {[%clk 0:00:21.4]} 31. Rd5 {[%clk 0:01:15.9]} 31... Ke8
{[%clk 0:00:20.6]} 32. g4 {[%clk 0:01:15.8]} 32... hxg4 {[%clk 0:00:20]} 33.
hxg4 {[%clk 0:01:16.7]} 33... Rc8 {[%clk 0:00:19.3]} 34. Kc4 {[%clk 0:01:12.9]}
34... Rc6 {[%clk 0:00:19]} 35. Kd4 {[%clk 0:01:09.9]} 35... Re6 {[%clk
0:00:14.9]} 36. Rf5 {[%clk 0:00:36.4]} 36... Re1 {[%clk 0:00:13.1]} 37. Rf3
{[%clk 0:00:35.2]} 37... Re2 {[%clk 0:00:11.4]} 38. Kd5 {[%clk 0:00:32.5]} 38...
Rd2+ {[%clk 0:00:10.5]} 39. Ke4 {[%clk 0:00:30.1]} 39... Rb2 {[%clk 0:00:08.9]}
40. Kf5 {[%clk 0:00:28.9]} 40... Rxb4 {[%clk 0:00:08.5]} 41. Re3 {[%clk
0:00:29.6]} 41... Kf7 {[%clk 0:00:08]} 42. Rf3 {[%clk 0:00:18.4]} 42... Rc4
{[%clk 0:00:08.3]} 43. Rh3 {[%clk 0:00:14.3]} 43... Rf4# {[%clk 0:00:07.6]} 0-1

[Event "*** SCC Grand Prix: Titled Tuesday Blitz"]
[Site "Chess.com"]
[Date "2020.06.23"]
[Round "10"]
[White "Justinz"]
[Black "MVM2008"]
[Result "1-0"]
[WhiteElo "2387"]
[BlackElo "2090"]
[TimeControl "180+1"]
[EndTime "11:57:28 PDT"]
[Termination "Justinz won by resignation"]

1. e4 {[%clk 0:02:18.3]} 1... e5 {[%clk 0:02:58.1]} 2. Nf3 {[%clk 0:02:17.1]}
2... Nc6 {[%clk 0:02:58.6]} 3. Nc3 {[%clk 0:02:17.4]} 3... Nf6 {[%clk
0:02:58.6]} 4. Bb5 {[%clk 0:02:17.3]} 4... Nd4 {[%clk 0:02:54.6]} 5. Ba4 {[%clk
0:02:16.3]} 5... c6 {[%clk 0:02:39.1]} 6. Nxe5 {[%clk 0:02:07.9]} 6... Bc5
{[%clk 0:02:37.8]} 7. Nd3 {[%clk 0:02:05.9]} 7... Bb6 {[%clk 0:02:35.5]} 8. e5
{[%clk 0:02:02.8]} 8... Nd5 {[%clk 0:02:14.5]} 9. Nxd5 {[%clk 0:02:02]} 9...
cxd5 {[%clk 0:02:15.4]} 10. c3 {[%clk 0:01:56.6]} 10... Nc6 {[%clk 0:02:12.6]}
11. O-O {[%clk 0:01:52.5]} 11... O-O {[%clk 0:02:12.5]} 12. Re1 {[%clk
0:01:48.7]} 12... f6 {[%clk 0:02:12]} 13. Qf3 {[%clk 0:01:37.4]} 13... fxe5
{[%clk 0:02:01.7]} 14. Qxd5+ {[%clk 0:01:36.4]} 14... Kh8 {[%clk 0:02:01.9]} 15.
Rf1 {[%clk 0:01:32.8]} 15... d6 {[%clk 0:01:56]} 16. Bd1 {[%clk 0:01:17.5]}
16... Qf6 {[%clk 0:01:39.3]} 17. Bf3 {[%clk 0:01:15.2]} 17... Be6 {[%clk
0:01:35.6]} 18. Qb5 {[%clk 0:00:58.4]} 18... d5 {[%clk 0:01:28.6]} 19. Bxd5
{[%clk 0:00:54.5]} 19... Bxd5 {[%clk 0:01:19.9]} 20. Qxd5 {[%clk 0:00:54]} 20...
e4 {[%clk 0:01:00.1]} 21. Qxe4 {[%clk 0:00:36.4]} 21... Rae8 {[%clk 0:00:58.1]}
22. Qg4 {[%clk 0:00:18.7]} 22... Ne5 {[%clk 0:00:14.5]} 23. Nxe5 {[%clk
0:00:13.3]} 23... Rxe5 {[%clk 0:00:15.4]} 24. d4 {[%clk 0:00:12.4]} 24... Rg5
{[%clk 0:00:15.5]} 25. Bxg5 {[%clk 0:00:11]} 25... Qg6 {[%clk 0:00:15.9]} 26.
Qh4 {[%clk 0:00:10.3]} 26... h6 {[%clk 0:00:15.5]} 27. Be3 {[%clk 0:00:09.7]}
27... Bd8 {[%clk 0:00:14.9]} 28. Qg3 {[%clk 0:00:09.7]} 28... Qf7 {[%clk
0:00:14.3]} 29. Rae1 {[%clk 0:00:10.1]} 29... Bc7 {[%clk 0:00:14]} 30. Qh3
{[%clk 0:00:10.4]} 30... Qg6 {[%clk 0:00:09.4]} 31. f4 {[%clk 0:00:11.3]} 31...
Re8 {[%clk 0:00:07.6]} 32. f5 {[%clk 0:00:10.9]} 32... Qf7 {[%clk 0:00:08]} 33.
f6 {[%clk 0:00:11.1]} 33... g6 {[%clk 0:00:07.6]} 34. Qxh6+ {[%clk 0:00:10.3]}
34... Kg8 {[%clk 0:00:07.5]} 35. Rf3 {[%clk 0:00:09.7]} 35... Qh7 {[%clk
0:00:03.1]} 36. f7+ {[%clk 0:00:09.3]} 36... Qxf7 {[%clk 0:00:03.4]} 37. Rxf7
{[%clk 0:00:09.1]} 37... Kxf7 {[%clk 0:00:04.3]} 38. Qh7+ {[%clk 0:00:09.2]} 1-0

[Event "*** SCC Grand Prix: Titled Tuesday Blitz"]
[Site "Chess.com"]
[Date "2020.06.23"]
[Round "10"]
[White "Parhamov"]
[Black "Onischuk_V"]
[Result "1-0"]
[WhiteElo "3074"]
[BlackElo "2902"]
[TimeControl "180+1"]
[EndTime "11:57:32 PDT"]
[Termination "Parhamov won on time"]

1. d4 {[%clk 0:02:58.4]} 1... d6 {[%clk 0:03:00.1]} 2. c4 {[%clk 0:02:58.7]}
2... e5 {[%clk 0:03:00.3]} 3. Nf3 {[%clk 0:02:58.2]} 3... e4 {[%clk 0:02:58.9]}
4. Ng5 {[%clk 0:02:58.1]} 4... Nf6 {[%clk 0:02:59.2]} 5. Nc3 {[%clk 0:02:58.1]}
5... Qe7 {[%clk 0:02:59.6]} 6. h4 {[%clk 0:02:47.8]} 6... h6 {[%clk 0:02:55.3]}
7. Nh3 {[%clk 0:02:47.9]} 7... Bf5 {[%clk 0:02:54.9]} 8. Nf4 {[%clk 0:02:47.8]}
8... c6 {[%clk 0:02:54.4]} 9. e3 {[%clk 0:02:43.3]} 9... g6 {[%clk 0:02:52]} 10.
Be2 {[%clk 0:02:42.1]} 10... h5 {[%clk 0:02:52.1]} 11. b4 {[%clk 0:02:40.7]}
11... Bh6 {[%clk 0:02:50.8]} 12. b5 {[%clk 0:02:38.3]} 12... O-O {[%clk
0:02:46.7]} 13. a4 {[%clk 0:02:38.1]} 13... Nbd7 {[%clk 0:02:43.2]} 14. g3
{[%clk 0:02:37.6]} 14... Bxf4 {[%clk 0:02:32.6]} 15. gxf4 {[%clk 0:02:04.1]}
15... c5 {[%clk 0:02:32.5]} 16. Bb2 {[%clk 0:02:02.8]} 16... Rfc8 {[%clk
0:02:25.9]} 17. a5 {[%clk 0:02:02]} 17... Nf8 {[%clk 0:02:15.2]} 18. dxc5 {[%clk
0:01:54.9]} 18... dxc5 {[%clk 0:01:59.3]} 19. Nd5 {[%clk 0:01:54.4]} 19... Nxd5
{[%clk 0:01:59.3]} 20. cxd5 {[%clk 0:01:54.3]} 20... Rd8 {[%clk 0:01:56.1]} 21.
Qd2 {[%clk 0:01:51.6]} 21... Rd6 {[%clk 0:01:45.4]} 22. Qc3 {[%clk 0:01:48.3]}
22... f6 {[%clk 0:01:45.2]} 23. Qxc5 {[%clk 0:01:47.8]} 23... Rc8 {[%clk
0:01:44.5]} 24. Qb4 {[%clk 0:01:47.1]} 24... Qd8 {[%clk 0:01:34.8]} 25. Rd1
{[%clk 0:01:35.6]} 25... Rc2 {[%clk 0:01:23.6]} 26. Rd2 {[%clk 0:01:32.6]} 26...
Rxd2 {[%clk 0:01:21.6]} 27. Qxd2 {[%clk 0:01:32.6]} 27... Kg7 {[%clk 0:01:19.5]}
28. Bc4 {[%clk 0:01:32.1]} 28... Be6 {[%clk 0:01:10.8]} 29. O-O {[%clk
0:00:57.4]} 29... Qc8 {[%clk 0:00:33.4]} 30. Rc1 {[%clk 0:00:51.5]} 30... Bxd5
{[%clk 0:00:20.1]} 31. Be2 {[%clk 0:00:40.9]} 31... Qd8 {[%clk 0:00:16.1]} 32.
f5 {[%clk 0:00:32.3]} 32... gxf5 {[%clk 0:00:14.1]} 33. Kh2 {[%clk 0:00:22.6]}
33... Bc4 {[%clk 0:00:08]} 34. Bd4 {[%clk 0:00:20.1]} 34... Bxe2 {[%clk
0:00:06.4]} 35. Qxe2 {[%clk 0:00:21]} 35... Qe8 {[%clk 0:00:06.2]} 36. Bxa7
{[%clk 0:00:19.4]} 36... Nd7 {[%clk 0:00:04]} 37. Rc7 {[%clk 0:00:16.6]} 37...
Kh6 {[%clk 0:00:02.9]} 38. Bd4 {[%clk 0:00:16.3]} 38... f4 {[%clk 0:00:01.9]}
39. Qc4 {[%clk 0:00:14.2]} 1-0